{"text_format":"3","workbook":"xlsx","n_sheets":1,"sheets":["Лист1"],"not_rendered":{"external_links":2},"read":"whole","date_system":"1900"}

{"sheet":"Лист1","index":0,"n_rows":112,"n_cols":16,"rows_kept":112}
["№",null,"Фамилия","Имя",null,"Пол",null,"Участник с ОВЗ","Класс","Класс участия","Балл","Макс. Балл","Статус","Призер МЭ прошлого года","Учитель","Место работы учителя"]
[1,null,3,4,null,6,null,8,9,10,11,12,13,14,15,16]
[1,null,"Шишлянников ","Игнат",null,"м",null,"нет",5,5,11,26,{"$f":"$M$6","v":"участник"},null,"Анисимова Ирина Николаевна","Муниципальное бюджетное общеобразовательное учреждение «Многопрофильная школа №181» Советского района г. Казани "]
[2,null,"Валиева ","Амина ",null,"ж",null,"нет",5,5,8,26,{"$f":"$M$6","v":"участник"},null,"Анисимова Ирина Николаевна","Муниципальное бюджетное общеобразовательное учреждение «Многопрофильная школа №181» Советского района г. Казани "]
[3,null,"Гайнутдинова ","Ясмина ",null,"ж",null,"нет",5,5,8,26,"участник",null,"Анисимова Ирина Николаевна","Муниципальное бюджетное общеобразовательное учреждение «Многопрофильная школа №181» Советского района г. Казани "]
[4,null,"Хуснутдинова","Лейсан",null,"ж",null,"нет",5,5,6,26,"участник",null,"Фролова Татьяна Васильевна","Муниципальное бюджетное общеобразовательное учреждение «Многопрофильная школа №181» Советского района г. Казани "]
[5,null,"Иванова","Дарья",null,"ж",null,"нет",5,5,10,26,"участник",null,"Фролова Татьяна Васильевна","Муниципальное бюджетное общеобразовательное учреждение «Многопрофильная школа №181» Советского района г. Казани "]
[6,null,"Масленникова","Маргарита",null,"ж",null,"нет",5,5,10,26,"участник",null,"Фролова Татьяна Васильевна","Муниципальное бюджетное общеобразовательное учреждение «Многопрофильная школа №181» Советского района г. Казани "]
[7,null,"Самонина","Кира",null,"ж",null,"нет",5,5,10,26,"участник",null,"Фролова Татьяна Васильевна","Муниципальное бюджетное общеобразовательное учреждение «Многопрофильная школа №181» Советского района г. Казани "]
[8,null,"Шарафетдинова","Алиса",null,"ж",null,"нет",5,5,10,26,"участник",null,"Фролова Татьяна Васильевна","Муниципальное бюджетное общеобразовательное учреждение «Многопрофильная школа №181» Советского района г. Казани "]
[9,null,"Закиров ","Ильназ ",null,"м",null,"нет",5,5,8,26,"участник",null,"Фролова Татьяна Васильевна","Муниципальное бюджетное общеобразовательное учреждение «Многопрофильная школа №181» Советского района г. Казани "]
[10,null,"Мухаметов ","Амир",null,"м",null,"нет",5,5,9,26,"участник",null,"Фролова Татьяна Васильевна","Муниципальное бюджетное общеобразовательное учреждение «Многопрофильная школа №181» Советского района г. Казани "]
[11,null,"Зиннурова","Камилла",null,"ж",null,"нет",5,5,9,26,"участник",null,"Фролова Татьяна Васильевна","Муниципальное бюджетное общеобразовательное учреждение «Многопрофильная школа №181» Советского района г. Казани "]
[12,null,"Попов","Роман",null,"м",null,"нет",5,5,9,26,"участник",null,"Фролова Татьяна Васильевна","Муниципальное бюджетное общеобразовательное учреждение «Многопрофильная школа №181» Советского района г. Казани "]
[13,null,"Близеев","Данил",null,"м",null,"нет",5,5,11,26,"участник",null,"Фролова Татьяна Васильевна","Муниципальное бюджетное общеобразовательное учреждение «Многопрофильная школа №181» Советского района г. Казани "]
[14,null,"Ваганов","Арсений",null,"м",null,"нет",5,5,7,26,"участник",null,"Фролова Татьяна Васильевна","Муниципальное бюджетное общеобразовательное учреждение «Многопрофильная школа №181» Советского района г. Казани "]
[15,null,"Бисеров","Кирилл",null,"м",null,"нет",5,5,6,26,"участник",null,"Фролова Татьяна Васильевна","Муниципальное бюджетное общеобразовательное учреждение «Многопрофильная школа №181» Советского района г. Казани "]
[16,null,"Писаревский","Фаддей",null,"м",null,"нет",5,5,9,26,"участник",null,"Фролова Татьяна Васильевна","Муниципальное бюджетное общеобразовательное учреждение «Многопрофильная школа №181» Советского района г. Казани "]
[17,null,"Ахметшин","Ислам",null,"м",null,"нет",5,5,8,26,"участник",null,"Фролова Татьяна Васильевна","Муниципальное бюджетное общеобразовательное учреждение «Многопрофильная школа №181» Советского района г. Казани "]
[18,null,"Игошева","София",null,"ж",null,"нет",5,5,10,26,"участник",null,"Фролова Татьяна Васильевна","Муниципальное бюджетное общеобразовательное учреждение «Многопрофильная школа №181» Советского района г. Казани "]
[19,null,"Поляков","Антон",null,"м",null,"нет",5,5,6,26,"участник",null,"Фролова Татьяна Васильевна","Муниципальное бюджетное общеобразовательное учреждение «Многопрофильная школа №181» Советского района г. Казани "]
[20,null,"Рио","Рамиль",null,"м",null,"нет",5,5,12,26,"участник",null,"Фролова Татьяна Васильевна","Муниципальное бюджетное общеобразовательное учреждение «Многопрофильная школа №181» Советского района г. Казани "]
[21,null,"Якупов","Искандер",null,"м",null,"нет",5,5,11,26,"участник",null,"Фролова Татьяна Васильевна","Муниципальное бюджетное общеобразовательное учреждение «Многопрофильная школа №181» Советского района г. Казани "]
[22,null,"Зайнуллин","Карим",null,"м",null,"нет",5,5,12,26,"участник",null,"Фролова Татьяна Васильевна","Муниципальное бюджетное общеобразовательное учреждение «Многопрофильная школа №181» Советского района г. Казани "]
[23,null,"Султанова","Азалия",null,"ж",null,"нет",5,5,9,26,"участник",null,"Фролова Татьяна Васильевна","Муниципальное бюджетное общеобразовательное учреждение «Многопрофильная школа №181» Советского района г. Казани "]
[24,null,"Ишмухаметова","Ярослава",null,"ж",null,"нет",5,5,10,26,"участник",null,"Фролова Татьяна Васильевна","Муниципальное бюджетное общеобразовательное учреждение «Многопрофильная школа №181» Советского района г. Казани "]
[25,null,"Ярмушева","Ева",null,"ж",null,"нет",5,5,5,26,"участник",null,"Фролова Татьяна Васильевна","Муниципальное бюджетное общеобразовательное учреждение «Многопрофильная школа №181» Советского района г. Казани "]
[26,null,"Саляхов","Булат",null,"м",null,"нет",5,5,5,26,"участник",null,"Фролова Татьяна Васильевна","Муниципальное бюджетное общеобразовательное учреждение «Многопрофильная школа №181» Советского района г. Казани "]
[27,null,"Усманова","Диана",null,"ж",null,"нет",5,5,5,26,"участник",null,"Фролова Татьяна Васильевна","Муниципальное бюджетное общеобразовательное учреждение «Многопрофильная школа №181» Советского района г. Казани "]
[28,null,"Мустафина","Амина",null,"ж",null,"нет",5,5,7,26,"участник",null,"Фролова Татьяна Васильевна","Муниципальное бюджетное общеобразовательное учреждение «Многопрофильная школа №181» Советского района г. Казани "]
[29,null,"Валеева","Кира",null,"ж",null,"нет",5,5,9,26,"участник",null,"Фролова Татьяна Васильевна","Муниципальное бюджетное общеобразовательное учреждение «Многопрофильная школа №181» Советского района г. Казани "]
[30,null,"Карпачев ","Ярослав ",null,"м",null,"нет",6,6,8,26,"участник",null,{"$f":"O3","v":"Анисимова Ирина Николаевна"},"Муниципальное бюджетное общеобразовательное учреждение «Многопрофильная школа №181» Советского района г. Казани "]
[31,null,"Кадыркаев ","Марат ",null,"м",null,"нет",6,6,11,26,"участник",null,"Анисимова Ирина Николаевна","Муниципальное бюджетное общеобразовательное учреждение «Многопрофильная школа №181» Советского района г. Казани "]
[32,null,"Павлуткина ","Арина ",null,"ж",null,"нет",6,6,10,26,"участник",null,"Анисимова Ирина Николаевна","Муниципальное бюджетное общеобразовательное учреждение «Многопрофильная школа №181» Советского района г. Казани "]
[33,null,"Митрофанова ","София ",null,"ж",null,"нет",6,6,11,26,"участник",null,{"$f":"$O$32","v":"Анисимова Ирина Николаевна"},"Муниципальное бюджетное общеобразовательное учреждение «Многопрофильная школа №181» Советского района г. Казани "]
[34,null,"Биктагирова Самира Руслановна","Самира ",null,"ж",null,"нет",6,6,10,26,"участник",null,{"$f":"$O$32","v":"Анисимова Ирина Николаевна"},"Муниципальное бюджетное общеобразовательное учреждение «Многопрофильная школа №181» Советского района г. Казани "]
[35,null,"Назмиева ","Камиля ",null,"ж",null,"нет",6,6,8,26,"участник",null,"Анисимова Ирина Николаевна","Муниципальное бюджетное общеобразовательное учреждение «Многопрофильная школа №181» Советского района г. Казани "]
[36,null,"Юмагузина ","Аделия",null,"ж",null,"нет",6,6,4,26,"участник",null,"Анисимова Ирина Николаевна","Муниципальное бюджетное общеобразовательное учреждение «Многопрофильная школа №181» Советского района г. Казани "]
[37,null,"Гейдаров ","Тимур ",null,"м",null,"нет",6,6,8,26,"участник",null,"Анисимова Ирина Николаевна","Муниципальное бюджетное общеобразовательное учреждение «Многопрофильная школа №181» Советского района г. Казани "]
[38,null,"Мануров ","Рамиль ",null,"м",null,"нет",6,6,10,26,"участник",null,"Анисимова Ирина Николаевна","Муниципальное бюджетное общеобразовательное учреждение «Многопрофильная школа №181» Советского района г. Казани "]
[39,null,"Тимуршина ","София ",null,"ж",null,"нет",6,6,11,26,"участник",null,"Анисимова Ирина Николаевна","Муниципальное бюджетное общеобразовательное учреждение «Многопрофильная школа №181» Советского района г. Казани "]
[40,null,"Ямалитдинова ","Ляйсан ",null,"ж",null,"нет",6,6,11,26,"участник",null,"Анисимова Ирина Николаевна","Муниципальное бюджетное общеобразовательное учреждение «Многопрофильная школа №181» Советского района г. Казани "]
[41,null,"Исмагилов"," Искандер ",null,"м",null,"нет",6,6,14,26,"призер",null,"Анисимова Ирина Николаевна","Муниципальное бюджетное общеобразовательное учреждение «Многопрофильная школа №181» Советского района г. Казани "]
[42,null,"Шешняева ","Маргарита ",null,"ж",null,"нет",6,6,10,26,"участник",null,"Анисимова Ирина Николаевна","Муниципальное бюджетное общеобразовательное учреждение «Многопрофильная школа №181» Советского района г. Казани "]
[43,null,"Кожевникова ","Анастасия ",null,"ж",null,"нет",6,6,10,26,"участник",null,"Анисимова Ирина Николаевна","Муниципальное бюджетное общеобразовательное учреждение «Многопрофильная школа №181» Советского района г. Казани "]
[44,null,"Идиатуллина"," Камалия ",null,"ж",null,"нет",6,6,2,26,"участник",null,"Анисимова Ирина Николаевна","Муниципальное бюджетное общеобразовательное учреждение «Многопрофильная школа №181» Советского района г. Казани "]
[45,null,"Оголихина ","Анастасия ",null,"ж",null,"нет",6,6,8,26,"участник",null,"Анисимова Ирина Николаевна","Муниципальное бюджетное общеобразовательное учреждение «Многопрофильная школа №181» Советского района г. Казани "]
[46,null,"Хазипов ","Аскар ",null,"м",null,"нет",6,6,11,26,"участник",null,"Анисимова Ирина Николаевна","Муниципальное бюджетное общеобразовательное учреждение «Многопрофильная школа №181» Советского района г. Казани "]
[47,null,"Парышева ","Дарья ",null,"ж",null,"нет",6,6,8,26,"участник",null,"Анисимова Ирина Николаевна","Муниципальное бюджетное общеобразовательное учреждение «Многопрофильная школа №181» Советского района г. Казани "]
[48,null,"Еникеев ","Сулейман",null,"м",null,"нет",6,6,10,26,"участник",null,"Анисимова Ирина Николаевна","Муниципальное бюджетное общеобразовательное учреждение «Многопрофильная школа №181» Советского района г. Казани "]
[49,null,"Шигапов ","Надир ",null,"м",null,"нет",6,6,9,26,"участник",null,"Анисимова Ирина Николаевна","Муниципальное бюджетное общеобразовательное учреждение «Многопрофильная школа №181» Советского района г. Казани "]
[50,null,"Хамитова ","София ",null,"ж",null,"нет",6,6,5,26,"участник",null,"Анисимова Ирина Николаевна","Муниципальное бюджетное общеобразовательное учреждение «Многопрофильная школа №181» Советского района г. Казани "]
[51,null,"Садыков ","Ильдан ",null,"м",null,"нет",6,6,12,26,"участник",null,"Анисимова Ирина Николаевна","Муниципальное бюджетное общеобразовательное учреждение «Многопрофильная школа №181» Советского района г. Казани "]
[52,null,"Загидуллин ","Ризван ",null,"м",null,"нет",6,6,9,26,"участник",null,"Анисимова Ирина Николаевна","Муниципальное бюджетное общеобразовательное учреждение «Многопрофильная школа №181» Советского района г. Казани "]
[53,null,"Ризванов ","Артур ",null,"м",null,"нет",6,6,7,26,"участник",null,"Анисимова Ирина Николаевна","Муниципальное бюджетное общеобразовательное учреждение «Многопрофильная школа №181» Советского района г. Казани "]
[54,null,"Плясунов ","Родион ",null,"м",null,"нет",6,6,7,26,"участник",null,"Анисимова Ирина Николаевна","Муниципальное бюджетное общеобразовательное учреждение «Многопрофильная школа №181» Советского района г. Казани "]
[55,null,"Шайхетдинов","Амир ",null,"м",null,"нет",7,7,22,30,"победитель",null,"Фролова Татьяна Васильевна","Муниципальное бюджетное общеобразовательное учреждение «Многопрофильная школа №181» Советского района г. Казани "]
[56,null,"Варопаева","Ксения",null,"ж",null,"нет",7,7,26,30,"призер",null,"Фролова Татьяна Васильевна","Муниципальное бюджетное общеобразовательное учреждение «Многопрофильная школа №181» Советского района г. Казани "]
[57,null,"Исмагилова","Салима",null,"ж",null,"нет",7,7,12,30,"участник",null,"Фролова Татьяна Васильевна","Муниципальное бюджетное общеобразовательное учреждение «Многопрофильная школа №181» Советского района г. Казани "]
[58,null,"Мазунова","Малика",null,"ж",null,"нет",7,7,14,30,"участник",null,"Фролова Татьяна Васильевна","Муниципальное бюджетное общеобразовательное учреждение «Многопрофильная школа №181» Советского района г. Казани "]
[59,null,"Кирасиров","Анвар",null,"м",null,"нет",7,7,12,30,"участник",null,"Фролова Татьяна Васильевна","Муниципальное бюджетное общеобразовательное учреждение «Многопрофильная школа №181» Советского района г. Казани "]
[60,null,"Герасимова","Арина",null,"ж",null,"нет",7,7,20,30,"призер",null,"Фролова Татьяна Васильевна","Муниципальное бюджетное общеобразовательное учреждение «Многопрофильная школа №181» Советского района г. Казани "]
[61,null,"Храмов","Даниил",null,"м",null,"нет",7,7,18,30,"призер",null,"Фролова Татьяна Васильевна","Муниципальное бюджетное общеобразовательное учреждение «Многопрофильная школа №181» Советского района г. Казани "]
[62,null,"Зелинская ","Дарья ",null,"ж",null,"нет",8,8,13,33,"участник",null,"Анисимова Ирина Николаевна","Муниципальное бюджетное общеобразовательное учреждение «Многопрофильная школа №181» Советского района г. Казани "]
[63,null,"Альфиров ","Эрнест ",null,"м",null,"нет",8,8,17,33,"призер",null,"Анисимова Ирина Николаевна","Муниципальное бюджетное общеобразовательное учреждение «Многопрофильная школа №181» Советского района г. Казани "]
[64,null,"Хасанова"," Валерия ",null,"ж",null,"нет",8,8,14,33,{"$f":"$M$64","v":"участник"},null,"Анисимова Ирина Николаевна","Муниципальное бюджетное общеобразовательное учреждение «Многопрофильная школа №181» Советского района г. Казани "]
[65,null,"Курлыков ","Матвей ",null,"м",null,"нет",8,8,17,33,"призер",null,"Анисимова Ирина Николаевна","Муниципальное бюджетное общеобразовательное учреждение «Многопрофильная школа №181» Советского района г. Казани "]
[66,null,"Бачева ","София ",null,"ж",null,"нет",8,8,18,33,"призер",null,"Анисимова Ирина Николаевна","Муниципальное бюджетное общеобразовательное учреждение «Многопрофильная школа №181» Советского района г. Казани "]
[67,null,"Ситдикова"," Адиля ",null,"ж",null,"нет",8,8,22,33,"призер","да","Анисимова Ирина Николаевна","Муниципальное бюджетное общеобразовательное учреждение «Многопрофильная школа №181» Советского района г. Казани "]
[68,null,"Демина ","Юлия ",null,"ж",null,"нет",8,8,16,33,{"$f":"$M$64","v":"участник"},null,"Анисимова Ирина Николаевна","Муниципальное бюджетное общеобразовательное учреждение «Многопрофильная школа №181» Советского района г. Казани "]
[69,null,"Насретдинова ","Зарина ",null,"ж",null,"нет",8,8,17,33,"призер",null,"Анисимова Ирина Николаевна","Муниципальное бюджетное общеобразовательное учреждение «Многопрофильная школа №181» Советского района г. Казани "]
[70,null,"Сафина ","Полина ",null,"ж",null,"нет",8,8,17,33,"призер",null,"Анисимова Ирина Николаевна","Муниципальное бюджетное общеобразовательное учреждение «Многопрофильная школа №181» Советского района г. Казани "]
[71,null,"Листкова ","Ольга ",null,"ж",null,"нет",8,8,22,33,"призер",null,"Анисимова Ирина Николаевна","Муниципальное бюджетное общеобразовательное учреждение «Многопрофильная школа №181» Советского района г. Казани "]
[72,null,"Гайнутдинов ","Кирилл ",null,"м",null,"нет",8,8,17,33,"призер",null,"Анисимова Ирина Николаевна","Муниципальное бюджетное общеобразовательное учреждение «Многопрофильная школа №181» Советского района г. Казани "]
[73,null,"Галлямова ","Алия ",null,"ж",null,"нет",8,8,10,33,{"$f":"$M$64","v":"участник"},null,"Анисимова Ирина Николаевна","Муниципальное бюджетное общеобразовательное учреждение «Многопрофильная школа №181» Советского района г. Казани "]
[74,null,"Хроменкова ","Зухра ",null,"ж",null,"нет",8,8,14,33,{"$f":"$M$64","v":"участник"},null,"Анисимова Ирина Николаевна","Муниципальное бюджетное общеобразовательное учреждение «Многопрофильная школа №181» Советского района г. Казани "]
[75,null,"Бобков ","Артём ",null,"м",null,"нет",8,8,13,33,"участник",null,"Анисимова Ирина Николаевна","Муниципальное бюджетное общеобразовательное учреждение «Многопрофильная школа №181» Советского района г. Казани "]
[76,null,"Ветлугина ","Арина ",null,"ж",null,"нет",8,8,19,33,"призер",null,"Анисимова Ирина Николаевна","Муниципальное бюджетное общеобразовательное учреждение «Многопрофильная школа №181» Советского района г. Казани "]
[77,null,"Аипова"," Николь ",null,"ж",null,"нет",9,9,29,56,"призер",null,"Анисимова Ирина Николаевна","Муниципальное бюджетное общеобразовательное учреждение «Многопрофильная школа №181» Советского района г. Казани "]
[78,null,"Шайхутдинов ","Камиль ",null,"м",null,"нет",9,9,27,56,"участник",null,"Анисимова Ирина Николаевна","Муниципальное бюджетное общеобразовательное учреждение «Многопрофильная школа №181» Советского района г. Казани "]
[79,null,"Галиризина ","Самира ",null,"ж",null,"нет",9,9,17,56,"участник",null,"Анисимова Ирина Николаевна","Муниципальное бюджетное общеобразовательное учреждение «Многопрофильная школа №181» Советского района г. Казани "]
[80,null,"Калачев","Ярослав ",null,"м",null,"нет",9,9,35,56,"призер",null,"Анисимова Ирина Николаевна","Муниципальное бюджетное общеобразовательное учреждение «Многопрофильная школа №181» Советского района г. Казани "]
[81,null,"Галиева ","Азалия ",null,"ж",null,"нет",9,9,27,56,{"$f":"$M$80","v":"участник"},null,"Анисимова Ирина Николаевна","Муниципальное бюджетное общеобразовательное учреждение «Многопрофильная школа №181» Советского района г. Казани "]
[82,null,"Храмченкова ","Вероника ",null,"ж",null,"нет",9,9,30,56,"призер",null,"Анисимова Ирина Николаевна","Муниципальное бюджетное общеобразовательное учреждение «Многопрофильная школа №181» Советского района г. Казани "]
[83,null,"Зейдуллова ","Хадиджа ",null,"ж",null,"нет",9,9,24,56,{"$f":"$M$83","v":"участник"},null,"Анисимова Ирина Николаевна","Муниципальное бюджетное общеобразовательное учреждение «Многопрофильная школа №181» Советского района г. Казани "]
[84,null,"Галиуллина Лейла Раисовна","Лейла ",null,"ж",null,"нет",9,9,26,56,"участник",null,"Анисимова Ирина Николаевна","Муниципальное бюджетное общеобразовательное учреждение «Многопрофильная школа №181» Советского района г. Казани "]
[85,null,"Абдуллина ","Камила ",null,"ж",null,"нет",9,9,22,56,"участник",null,"Анисимова Ирина Николаевна","Муниципальное бюджетное общеобразовательное учреждение «Многопрофильная школа №181» Советского района г. Казани "]
[86,null,"Баранова ","Мария ",null,"ж",null,"нет",9,9,23,56,"участник",null,"Анисимова Ирина Николаевна","Муниципальное бюджетное общеобразовательное учреждение «Многопрофильная школа №181» Советского района г. Казани "]
[87,null,"Кравченко ","Артур ",null,"м",null,"нет",9,9,24,56,"участник",null,"Анисимова Ирина Николаевна","Муниципальное бюджетное общеобразовательное учреждение «Многопрофильная школа №181» Советского района г. Казани "]
[88,null,"Хайруллин ","Арслан ",null,"м",null,"нет",9,9,22,56,"участник",null,"Анисимова Ирина Николаевна","Муниципальное бюджетное общеобразовательное учреждение «Многопрофильная школа №181» Советского района г. Казани "]
[89,null,"Задворнова ","Софья ",null,"ж",null,"нет",9,9,21,56,"участник",null,"Анисимова Ирина Николаевна","Муниципальное бюджетное общеобразовательное учреждение «Многопрофильная школа №181» Советского района г. Казани "]
[90,null,"Кондрышев ","Глеб ",null,"м",null,"нет",9,9,22,56,"участник",null,"Анисимова Ирина Николаевна","Муниципальное бюджетное общеобразовательное учреждение «Многопрофильная школа №181» Советского района г. Казани "]
[91,null,"Шайхетдинова ","Ясмина ",null,"ж",null,"нет",9,9,37,56,"победитель",null,"Анисимова Ирина Николаевна","Муниципальное бюджетное общеобразовательное учреждение «Многопрофильная школа №181» Советского района г. Казани "]
[92,null,"Волкова Владислава Петровна","Владислава ",null,"ж",null,"нет",9,9,33,56,"призер",null,"Анисимова Ирина Николаевна","Муниципальное бюджетное общеобразовательное учреждение «Многопрофильная школа №181» Советского района г. Казани "]
[93,null,"Каримова ","Камиля ",null,"ж",null,"нет",9,9,30,56,"призер",null,"Анисимова Ирина Николаевна","Муниципальное бюджетное общеобразовательное учреждение «Многопрофильная школа №181» Советского района г. Казани "]
[94,null,"Зиннатуллина ","Азалия ",null,"ж",null,"нет",9,9,16,56,"участник",null,"Анисимова Ирина Николаевна","Муниципальное бюджетное общеобразовательное учреждение «Многопрофильная школа №181» Советского района г. Казани "]
[95,null,"Филатова ","Диана ",null,"ж",null,"нет",9,9,14,56,"участник",null,"Анисимова Ирина Николаевна","Муниципальное бюджетное общеобразовательное учреждение «Многопрофильная школа №181» Советского района г. Казани "]
[96,null,"Гиниятуллина ","Алиса ",null,"ж",null,"нет",9,9,23,56,"участник",null,"Анисимова Ирина Николаевна","Муниципальное бюджетное общеобразовательное учреждение «Многопрофильная школа №181» Советского района г. Казани "]
[97,null,"Куприянов ","Тимур ",null,"м",null,"нет",9,9,21,56,"участник",null,"Анисимова Ирина Николаевна","Муниципальное бюджетное общеобразовательное учреждение «Многопрофильная школа №181» Советского района г. Казани "]
[98,null,"Ситсали ","Александра ",null,"ж",null,"нет",9,9,18,56,"участник",null,"Анисимова Ирина Николаевна","Муниципальное бюджетное общеобразовательное учреждение «Многопрофильная школа №181» Советского района г. Казани "]
[99,null,"Хамидуллина ","Регина ",null,"ж",null,"нет",9,9,24,56,"участник",null,"Анисимова Ирина Николаевна","Муниципальное бюджетное общеобразовательное учреждение «Многопрофильная школа №181» Советского района г. Казани "]
[100,null,"Григорьев ","Эмиль ",null,"м",null,"нет",9,9,30,56,"призер",null,"Анисимова Ирина Николаевна","Муниципальное бюджетное общеобразовательное учреждение «Многопрофильная школа №181» Советского района г. Казани "]
[101,null,"Бикова ","Милена ",null,"ж",null,"нет",10,10,31,63,"участник","да","Фролова Татьяна Васильевна","Муниципальное бюджетное общеобразовательное учреждение «Многопрофильная школа №181» Советского района г. Казани "]
[102,null,"Вафина","Наиля",null,"ж",null,"нет",10,10,27,63,"участник",null,"Фролова Татьяна Васильевна","Муниципальное бюджетное общеобразовательное учреждение «Многопрофильная школа №181» Советского района г. Казани "]
[103,null,"Хуснутдинов","Дамир",null,"м",null,"нет",10,10,24,63,"участник",null,"Фролова Татьяна Васильевна","Муниципальное бюджетное общеобразовательное учреждение «Многопрофильная школа №181» Советского района г. Казани "]
[104,null,"Сафонов","Богдан",null,"м",null,"нет",10,10,31,63,"участник",null,"Фролова Татьяна Васильевна","Муниципальное бюджетное общеобразовательное учреждение «Многопрофильная школа №181» Советского района г. Казани "]
[105,null,"Тахавиева ","Чулпан ",null,"ж",null,"нет",11,11,48,70,"победитель",null,"Фролова Татьяна Васильевна","Муниципальное бюджетное общеобразовательное учреждение «Многопрофильная школа №181» Советского района г. Казани "]
[106,null,"Соколовская","Валерия ",null,"ж",null,"нет",11,11,38,70,"призер",null,"Фролова Татьяна Васильевна","Муниципальное бюджетное общеобразовательное учреждение «Многопрофильная школа №181» Советского района г. Казани "]
[107,null,"Селимович","Ясмина",null,"ж",null,"нет",11,11,34,70,"участник",null,"Фролова Татьяна Васильевна","Муниципальное бюджетное общеобразовательное учреждение «Многопрофильная школа №181» Советского района г. Казани "]
[108,null,"Капитонова","Ксения",null,"ж",null,"нет",11,11,35,70,"призер",null,"Фролова Татьяна Васильевна","Муниципальное бюджетное общеобразовательное учреждение «Многопрофильная школа №181» Советского района г. Казани "]
[109,null,"Моисеева","Софья ",null,"ж",null,"нет",11,11,37,70,"призер","да","Фролова Татьяна Васильевна","Муниципальное бюджетное общеобразовательное учреждение «Многопрофильная школа №181» Советского района г. Казани "]
[110,null,"Муминова","Камилла ",null,"ж",null,"нет",11,11,37,70,"призер","да","Фролова Татьяна Васильевна","Муниципальное бюджетное общеобразовательное учреждение «Многопрофильная школа №181» Советского района г. Казани "]